[Event "*** Titled Tuesday Blitz"]
[Site "Chess.com"]
[Date "2021.02.02"]
[Round "2"]
[White "Berardino"]
[Black "BilodeauA"]
[Result "0-1"]
[WhiteElo "2557"]
[BlackElo "2872"]
[TimeControl "180+1"]
[EndTime "10:19:30 PST"]
[Termination "BilodeauA won by resignation"]

1. e4 {[%clk 0:03:00.9]} 1... c5 {[%clk 0:02:57.3]} 2. Nf3 {[%clk 0:03:01.1]}
2... d6 {[%clk 0:02:56.8]} 3. d4 {[%clk 0:03:01.5]} 3... cxd4 {[%clk 0:02:57.6]}
4. Nxd4 {[%clk 0:03:02.1]} 4... Nf6 {[%clk 0:02:58.3]} 5. Nc3 {[%clk 0:03:02.6]}
5... Bd7 {[%clk 0:02:59.1]} 6. Bc4 {[%clk 0:02:59.1]} 6... Nc6 {[%clk
0:02:54.5]} 7. Bb3 {[%clk 0:02:56.5]} 7... g6 {[%clk 0:02:54]} 8. f3 {[%clk
0:02:55.3]} 8... Bg7 {[%clk 0:02:54.3]} 9. Be3 {[%clk 0:02:54.4]} 9... Na5
{[%clk 0:02:49.4]} 10. Qd2 {[%clk 0:02:49.7]} 10... Nxb3 {[%clk 0:02:44.5]} 11.
axb3 {[%clk 0:02:46.7]} 11... O-O {[%clk 0:02:44.5]} 12. Bh6 {[%clk 0:02:46.6]}
12... Qb6 {[%clk 0:02:35]} 13. O-O-O {[%clk 0:02:39.6]} 13... a5 {[%clk
0:02:34.8]} 14. Bxg7 {[%clk 0:02:08.7]} 14... Kxg7 {[%clk 0:02:35.7]} 15. Nd5
{[%clk 0:02:08.1]} 15... Nxd5 {[%clk 0:02:30]} 16. exd5 {[%clk 0:02:09]} 16...
a4 {[%clk 0:02:30.7]} 17. Kb1 {[%clk 0:01:47.5]} 17... axb3 {[%clk 0:02:25.2]}
18. Nxb3 {[%clk 0:01:47.4]} 18... Bf5 {[%clk 0:02:24.9]} 19. Qd4+ {[%clk
0:01:47.6]} 19... Qxd4 {[%clk 0:02:24.9]} 20. Nxd4 {[%clk 0:01:48.5]} 20... Ra5
{[%clk 0:02:21.9]} 21. Nxf5+ {[%clk 0:01:38]} 21... gxf5 {[%clk 0:02:22.8]} 22.
b3 {[%clk 0:01:33.9]} 22... Rfa8 {[%clk 0:02:22.2]} 23. Rhe1 {[%clk 0:01:15.6]}
23... b5 {[%clk 0:02:21.8]} 24. Kc1 {[%clk 0:01:02.6]} 24... Kf6 {[%clk
0:02:18.8]} 25. Rd4 {[%clk 0:01:02.7]} 25... Rc8 {[%clk 0:02:07.4]} 26. Kb2
{[%clk 0:00:49.7]} 26... b4 {[%clk 0:02:01.8]} 27. Rxb4 {[%clk 0:00:34.5]} 27...
Rxd5 {[%clk 0:02:01.6]} 28. Re2 {[%clk 0:00:31.9]} 28... e5 {[%clk 0:02:01.7]}
29. c4 {[%clk 0:00:24.3]} 29... Rd4 {[%clk 0:01:49.8]} 30. Kc3 {[%clk
0:00:21.6]} 30... h5 {[%clk 0:01:37.7]} 31. Rd2 {[%clk 0:00:20.9]} 31... Rxd2
{[%clk 0:01:37.5]} 32. Kxd2 {[%clk 0:00:21.8]} 32... Rg8 {[%clk 0:01:37.9]} 33.
g3 {[%clk 0:00:22]} 33... h4 {[%clk 0:01:38.6]} 34. gxh4 {[%clk 0:00:19.3]}
34... Rg2+ {[%clk 0:01:37.8]} 35. Ke3 {[%clk 0:00:19.1]} 35... Rxh2 {[%clk
0:01:37.2]} 36. Rb6 {[%clk 0:00:19.6]} 36... Ke7 {[%clk 0:01:37.6]} 37. Rb7+
{[%clk 0:00:19.3]} 37... Ke6 {[%clk 0:01:38]} 38. Rb6 {[%clk 0:00:19.6]} 38...
f4+ {[%clk 0:01:31.3]} 39. Kd3 {[%clk 0:00:19.9]} 39... Rf2 {[%clk 0:01:24.7]}
40. c5 {[%clk 0:00:20.2]} 40... Rxf3+ {[%clk 0:01:25.1]} 41. Kd2 {[%clk
0:00:17]} 41... e4 {[%clk 0:01:19.8]} 42. Rxd6+ {[%clk 0:00:15.3]} 42... Ke5
{[%clk 0:01:20.4]} 43. Rd8 {[%clk 0:00:14.1]} 43... e3+ {[%clk 0:01:05.3]} 44.
Ke1 {[%clk 0:00:07.7]} 44... Rh3 {[%clk 0:01:04.7]} 45. c6 {[%clk 0:00:05.4]}
45... f3 {[%clk 0:01:05.2]} 46. Re8+ {[%clk 0:00:05.3]} 46... Kf4 {[%clk
0:01:04.1]} 47. Kd1 {[%clk 0:00:05.4]} 47... Rh1+ {[%clk 0:01:02.2]} 48. Kc2
{[%clk 0:00:05.6]} 48... f2 {[%clk 0:01:01]} 0-1

[Event "*** Titled Tuesday Blitz"]
[Site "Chess.com"]
[Date "2021.02.02"]
[Round "2"]
[White "erlesfar"]
[Black "utsavp"]
[Result "1-0"]
[WhiteElo "2505"]
[BlackElo "2299"]
[TimeControl "180+1"]
[EndTime "10:19:31 PST"]
[Termination "erlesfar won by resignation"]

1. e4 {[%clk 0:03:00.9]} 1... d5 {[%clk 0:01:13.8]} 2. exd5 {[%clk 0:02:57.8]}
2... Qxd5 {[%clk 0:01:11.7]} 3. Nc3 {[%clk 0:02:57]} 3... Qa5 {[%clk 0:01:05.1]}
4. d4 {[%clk 0:02:56.1]} 4... Nf6 {[%clk 0:01:06]} 5. Bd2 {[%clk 0:02:56.2]}
5... c6 {[%clk 0:01:06.2]} 6. Bc4 {[%clk 0:02:54.8]} 6... Qc7 {[%clk 0:01:06.3]}
7. Nf3 {[%clk 0:02:53.3]} 7... Bf5 {[%clk 0:01:06.4]} 8. Ne5 {[%clk 0:02:52.7]}
8... e6 {[%clk 0:01:06.3]} 9. Qe2 {[%clk 0:02:51]} 9... Nbd7 {[%clk 0:01:06.3]}
10. g4 {[%clk 0:02:50.5]} 10... Bg6 {[%clk 0:01:06.3]} 11. h4 {[%clk 0:02:45.9]}
11... Nxe5 {[%clk 0:00:47.6]} 12. dxe5 {[%clk 0:02:44.6]} 12... Nd5 {[%clk
0:00:47.9]} 13. h5 {[%clk 0:02:44.2]} 13... Bxc2 {[%clk 0:00:47.4]} 14. Rc1
{[%clk 0:02:42.5]} 14... Nxc3 {[%clk 0:00:34.3]} 15. Bxc3 {[%clk 0:02:40.3]}
15... Ba4 {[%clk 0:00:33.4]} 16. b3 {[%clk 0:02:30.7]} 16... Bb5 {[%clk
0:00:33.4]} 17. Bxb5 {[%clk 0:02:27.8]} 17... cxb5 {[%clk 0:00:34.3]} 18. Qxb5+
{[%clk 0:02:27.6]} 18... Qc6 {[%clk 0:00:33.5]} 19. Qxc6+ {[%clk 0:02:27.3]}
19... bxc6 {[%clk 0:00:33.8]} 20. Bd4 {[%clk 0:02:27.3]} 20... c5 {[%clk
0:00:31.8]} 21. Be3 {[%clk 0:02:26.7]} 21... Rc8 {[%clk 0:00:31.3]} 22. Ke2
{[%clk 0:02:26.4]} 22... a6 {[%clk 0:00:31.1]} 23. Rc4 {[%clk 0:02:26.2]} 23...
Be7 {[%clk 0:00:29.6]} 24. Rhc1 {[%clk 0:02:22.9]} 24... Kd7 {[%clk 0:00:29.3]}
25. Bxc5 {[%clk 0:02:22.6]} 25... Bxc5 {[%clk 0:00:29.1]} 26. Rxc5 {[%clk
0:02:22.6]} 26... Rxc5 {[%clk 0:00:29.4]} 27. Rxc5 {[%clk 0:02:22.4]} 27... Rb8
{[%clk 0:00:30.3]} 28. Kd3 {[%clk 0:02:19.8]} 28... Rb4 {[%clk 0:00:29.8]} 29.
Rc4 {[%clk 0:02:19.7]} 29... Rb5 {[%clk 0:00:29.3]} 30. Ke4 {[%clk 0:02:19.6]}
30... f6 {[%clk 0:00:27.8]} 31. f4 {[%clk 0:02:15]} 31... fxe5 {[%clk
0:00:24.4]} 32. fxe5 {[%clk 0:02:14.8]} 32... g6 {[%clk 0:00:24.2]} 33. h6
{[%clk 0:02:13.5]} 33... g5 {[%clk 0:00:21.8]} 34. Rd4+ {[%clk 0:02:11.2]} 34...
Ke7 {[%clk 0:00:21.7]} 35. Ra4 {[%clk 0:02:09.5]} 35... a5 {[%clk 0:00:21.5]}
36. Rc4 {[%clk 0:02:05.9]} 36... Kd7 {[%clk 0:00:21.2]} 37. Rd4+ {[%clk
0:01:43.4]} 37... Ke7 {[%clk 0:00:20.9]} 38. Rd6 {[%clk 0:01:30]} 38... a4
{[%clk 0:00:20]} 39. Ra6 {[%clk 0:01:25.1]} 39... axb3 {[%clk 0:00:19.6]} 40.
axb3 {[%clk 0:01:25.1]} 40... Kf8 {[%clk 0:00:20]} 41. Rxe6 {[%clk 0:01:23.7]}
41... Rb4+ {[%clk 0:00:20.1]} 42. Kf5 {[%clk 0:01:22.9]} 42... Rxb3 {[%clk
0:00:21]} 43. Kxg5 {[%clk 0:01:22.4]} 43... Rb7 {[%clk 0:00:21.4]} 44. Rf6+
{[%clk 0:01:21.4]} 44... Ke7 {[%clk 0:00:21.4]} 45. e6 {[%clk 0:01:20.4]} 45...
Rb5+ {[%clk 0:00:20.7]} 46. Rf5 {[%clk 0:01:20.5]} 46... Rb1 {[%clk 0:00:20.7]}
47. Rf7+ {[%clk 0:01:20.1]} 47... Kxe6 {[%clk 0:00:20.3]} 48. Rxh7 {[%clk
0:01:21]} 48... Rb8 {[%clk 0:00:20.1]} 49. Rg7 {[%clk 0:01:20.4]} 49... Rg8
{[%clk 0:00:18.8]} 50. Kg6 {[%clk 0:01:19.6]} 50... Rf8 {[%clk 0:00:17.7]} 51.
g5 {[%clk 0:01:18.8]} 51... Rh8 {[%clk 0:00:15.6]} 52. h7 {[%clk 0:01:18.4]}
52... Rf8 {[%clk 0:00:12.8]} 53. Rg8 {[%clk 0:01:18]} 1-0

[Event "*** Titled Tuesday Blitz"]
[Site "Chess.com"]
[Date "2021.02.02"]
[Round "2"]
[White "HouseOfDurin"]
[Black "Malysch"]
[Result "0-1"]
[WhiteElo "2100"]
[BlackElo "2397"]
[TimeControl "180+1"]
[EndTime "10:19:34 PST"]
[Termination "Malysch won by resignation"]

1. d4 {[%clk 0:03:00.9]} 1... Nf6 {[%clk 0:02:58.5]} 2. Bg5 {[%clk 0:03:01.2]}
2... c5 {[%clk 0:02:58.8]} 3. Bxf6 {[%clk 0:03:01.4]} 3... gxf6 {[%clk
0:02:59.2]} 4. c3 {[%clk 0:03:02.1]} 4... e6 {[%clk 0:02:57.9]} 5. e3 {[%clk
0:03:00.4]} 5... Qb6 {[%clk 0:02:56.5]} 6. Qc2 {[%clk 0:02:57]} 6... Nc6 {[%clk
0:02:56.1]} 7. g3 {[%clk 0:02:56]} 7... d5 {[%clk 0:02:55.4]} 8. Bg2 {[%clk
0:02:55]} 8... Bd7 {[%clk 0:02:55.2]} 9. Ne2 {[%clk 0:02:55.5]} 9... O-O-O
{[%clk 0:02:54.2]} 10. O-O {[%clk 0:02:55.3]} 10... Kb8 {[%clk 0:02:53.3]} 11.
dxc5 {[%clk 0:02:53.7]} 11... Bxc5 {[%clk 0:02:52.2]} 12. b4 {[%clk 0:02:53.9]}
12... Bd6 {[%clk 0:02:50.4]} 13. a4 {[%clk 0:02:53.7]} 13... Rc8 {[%clk
0:02:50]} 14. Qb2 {[%clk 0:02:38.4]} 14... Ne5 {[%clk 0:02:48.4]} 15. Nd2 {[%clk
0:02:33.4]} 15... h5 {[%clk 0:02:41.1]} 16. h4 {[%clk 0:02:31.6]} 16... Rhg8
{[%clk 0:02:37.1]} 17. Nf4 {[%clk 0:02:22.6]} 17... Ng4 {[%clk 0:02:33.2]} 18.
a5 {[%clk 0:02:11.8]} 18... Qb5 {[%clk 0:02:25.4]} 19. Nxh5 {[%clk 0:02:07.6]}
19... Qd3 {[%clk 0:02:15.6]} 20. Rac1 {[%clk 0:01:58]} 20... Bb5 {[%clk
0:01:45.5]} 21. Nf4 {[%clk 0:01:42]} 21... Qf5 {[%clk 0:01:44.6]} 22. Rfe1
{[%clk 0:01:07.8]} 22... e5 {[%clk 0:01:21]} 23. e4 {[%clk 0:01:07.3]} 23...
dxe4 {[%clk 0:00:57.5]} 24. Bxe4 {[%clk 0:01:08.2]} 24... Qd7 {[%clk 0:00:51.5]}
25. Nd5 {[%clk 0:01:00.5]} 25... f5 {[%clk 0:00:46.6]} 26. Bg2 {[%clk
0:00:47.6]} 26... f4 {[%clk 0:00:45.8]} 27. c4 {[%clk 0:00:44.1]} 27... Nxf2
{[%clk 0:00:41.7]} 28. Kxf2 {[%clk 0:00:42.1]} 28... Rxg3 {[%clk 0:00:34.1]} 29.
Ne4 {[%clk 0:00:39.5]} 29... Rxg2+ {[%clk 0:00:31.4]} 30. Kxg2 {[%clk 0:00:39]}
30... Qg4+ {[%clk 0:00:30.5]} 31. Kf2 {[%clk 0:00:33.3]} 31... Rg8 {[%clk
0:00:27.4]} 32. Rg1 {[%clk 0:00:15.8]} 32... Qxh4+ {[%clk 0:00:27]} 33. Kf1
{[%clk 0:00:13.7]} 33... Qh3+ {[%clk 0:00:25.2]} 34. Ke1 {[%clk 0:00:13.9]}
34... Rxg1+ {[%clk 0:00:21.8]} 35. Kd2 {[%clk 0:00:14.3]} 35... Rg2+ {[%clk
0:00:20.5]} 36. Kd1 {[%clk 0:00:13.5]} 0-1

[Event "*** Titled Tuesday Blitz"]
[Site "Chess.com"]
[Date "2021.02.02"]
[Round "2"]
[White "zurzan"]
[Black "CakeinSpace2002"]
[Result "0-1"]
[WhiteElo "2027"]
[BlackElo "2383"]
[TimeControl "180+1"]
[EndTime "10:19:35 PST"]
[Termination "CakeinSpace2002 won by resignation"]

1. f4 {[%clk 0:03:00.9]} 1... d5 {[%clk 0:02:59.2]} 2. Nf3 {[%clk 0:03:01]} 2...
g6 {[%clk 0:02:59.3]} 3. g3 {[%clk 0:03:01.3]} 3... Bg7 {[%clk 0:02:59.6]} 4.
Bg2 {[%clk 0:03:02.2]} 4... Nh6 {[%clk 0:02:59.8]} 5. O-O {[%clk 0:03:03.1]}
5... O-O {[%clk 0:03:00]} 6. d3 {[%clk 0:03:03.8]} 6... c5 {[%clk 0:02:59.7]} 7.
c3 {[%clk 0:03:03.5]} 7... Nc6 {[%clk 0:02:59.7]} 8. e4 {[%clk 0:03:03.1]} 8...
dxe4 {[%clk 0:02:58.8]} 9. dxe4 {[%clk 0:03:04]} 9... b6 {[%clk 0:02:55]} 10.
Qxd8 {[%clk 0:03:02.8]} 10... Rxd8 {[%clk 0:02:54.7]} 11. h3 {[%clk 0:02:58.7]}
11... Ba6 {[%clk 0:02:54.6]} 12. Re1 {[%clk 0:02:55.6]} 12... Rd7 {[%clk
0:02:52.9]} 13. Be3 {[%clk 0:02:54.4]} 13... Rad8 {[%clk 0:02:53]} 14. Nbd2
{[%clk 0:02:51.8]} 14... Kf8 {[%clk 0:02:43.6]} 15. a3 {[%clk 0:02:50.5]} 15...
Ng8 {[%clk 0:02:43.4]} 16. e5 {[%clk 0:02:46.2]} 16... Na5 {[%clk 0:02:36.1]}
17. b3 {[%clk 0:02:41.6]} 17... Bd3 {[%clk 0:02:32.8]} 18. c4 {[%clk 0:02:37.3]}
18... e6 {[%clk 0:02:32]} 19. Rac1 {[%clk 0:02:32]} 19... Ne7 {[%clk 0:02:31.8]}
20. b4 {[%clk 0:02:29.4]} 20... cxb4 {[%clk 0:02:28.5]} 21. axb4 {[%clk
0:02:30.3]} 21... Nac6 {[%clk 0:02:29.1]} 22. b5 {[%clk 0:02:15]} 22... Na5
{[%clk 0:02:27.3]} 23. Rc3 {[%clk 0:02:10.1]} 23... Nf5 {[%clk 0:02:20.7]} 24.
Bf2 {[%clk 0:02:05.7]} 24... Nb7 {[%clk 0:02:17.6]} 25. g4 {[%clk 0:02:00]}
25... Ne7 {[%clk 0:02:17]} 26. c5 {[%clk 0:01:43.5]} 26... Nxc5 {[%clk
0:02:15.7]} 27. Bxc5 {[%clk 0:01:43.5]} 27... bxc5 {[%clk 0:02:16.5]} 28. Rxc5
{[%clk 0:01:43.7]} 28... Nd5 {[%clk 0:02:14]} 29. Ng5 {[%clk 0:01:39.5]} 29...
Nxf4 {[%clk 0:02:08.9]} 30. Nxh7+ {[%clk 0:01:38.5]} 30... Kg8 {[%clk
0:02:08.6]} 31. Ng5 {[%clk 0:01:38.2]} 31... Nxg2 {[%clk 0:02:04.7]} 32. Kxg2
{[%clk 0:01:38.5]} 32... Bxb5 {[%clk 0:02:03.7]} 33. Nde4 {[%clk 0:01:36.1]}
33... Ba6 {[%clk 0:01:59.6]} 34. Nd6 {[%clk 0:01:35.1]} 34... Bxe5 {[%clk
0:01:57.1]} 35. Ndxf7 {[%clk 0:01:32.8]} 35... Rd2+ {[%clk 0:01:53.9]} 36. Kf3
{[%clk 0:01:27.2]} 36... Bb7+ {[%clk 0:01:52.7]} 37. Ne4 {[%clk 0:01:14.3]}
37... R8d3+ {[%clk 0:01:49.4]} 38. Re3 {[%clk 0:01:10.5]} 38... Bd4 {[%clk
0:01:46.5]} 39. Rxd3 {[%clk 0:01:09.5]} 39... Rxd3+ {[%clk 0:01:47.4]} 40. Ke2
{[%clk 0:01:08.5]} 40... Re3+ {[%clk 0:01:47.3]} 41. Kd2 {[%clk 0:01:08.4]}
41... Bxe4 {[%clk 0:01:38.7]} 42. Rc7 {[%clk 0:01:01.8]} 42... Rd3+ {[%clk
0:01:35.3]} 43. Ke2 {[%clk 0:01:01.2]} 43... Rxh3 {[%clk 0:01:33.4]} 44. Ng5
{[%clk 0:00:58.4]} 44... Bd3+ {[%clk 0:01:24.7]} 45. Kd2 {[%clk 0:00:53.8]}
45... Be3+ {[%clk 0:01:24.3]} 46. Kxd3 {[%clk 0:00:53.9]} 46... Bxg5+ {[%clk
0:01:25.2]} 47. Kd4 {[%clk 0:00:52.3]} 47... Rg3 {[%clk 0:01:18.4]} 48. Ke5
{[%clk 0:00:47]} 48... Re3+ {[%clk 0:01:16.1]} 49. Kd4 {[%clk 0:00:43.1]} 49...
e5+ {[%clk 0:01:15.9]} 50. Kc4 {[%clk 0:00:41.7]} 50... Re1 {[%clk 0:01:10.7]}
51. Rxa7 {[%clk 0:00:40.7]} 51... e4 {[%clk 0:01:10.7]} 52. Kd5 {[%clk 0:00:38]}
52... e3 {[%clk 0:01:09.8]} 53. Ke6 {[%clk 0:00:37.7]} 53... e2 {[%clk
0:01:07.7]} 54. Ra8+ {[%clk 0:00:37.6]} 54... Kg7 {[%clk 0:01:07.3]} 55. Ra7+
{[%clk 0:00:37.9]} 55... Kh6 {[%clk 0:01:07.3]} 56. Ra8 {[%clk 0:00:35.7]} 56...
Rf1 {[%clk 0:01:06.4]} 57. Rh8+ {[%clk 0:00:35.2]} 57... Kg7 {[%clk 0:01:06.4]}
0-1

[Event "*** Titled Tuesday Blitz"]
[Site "Chess.com"]
[Date "2021.02.02"]
[Round "2"]
[White "scarabee43"]
[Black "GadimbayliA"]
[Result "1-0"]
[WhiteElo "2595"]
[BlackElo "2890"]
[TimeControl "180+1"]
[EndTime "10:19:38 PST"]
[Termination "scarabee43 won by resignation"]

1. d4 {[%clk 0:03:00.9]} 1... d5 {[%clk 0:02:59.5]} 2. c4 {[%clk 0:03:01.3]}
2... e5 {[%clk 0:02:58.6]} 3. dxe5 {[%clk 0:03:01]} 3... d4 {[%clk 0:02:59.5]}
4. Nf3 {[%clk 0:03:00.8]} 4... Nc6 {[%clk 0:03:00.1]} 5. a3 {[%clk 0:03:01.2]}
5... Nge7 {[%clk 0:03:00.1]} 6. b4 {[%clk 0:02:56.9]} 6... Ng6 {[%clk 0:03:00]}
7. Bb2 {[%clk 0:02:51.6]} 7... a5 {[%clk 0:02:59.5]} 8. b5 {[%clk 0:02:51.3]}
8... Ncxe5 {[%clk 0:02:59.5]} 9. Nxe5 {[%clk 0:02:48.1]} 9... Nxe5 {[%clk
0:03:00.4]} 10. Bxd4 {[%clk 0:02:48.2]} 10... Nxc4 {[%clk 0:03:00]} 11. e3
{[%clk 0:02:48.2]} 11... Be6 {[%clk 0:03:00.3]} 12. Qc2 {[%clk 0:02:46.7]} 12...
Nd6 {[%clk 0:03:00.1]} 13. Be2 {[%clk 0:02:40.2]} 13... Be7 {[%clk 0:02:59.9]}
14. O-O {[%clk 0:02:38.2]} 14... O-O {[%clk 0:02:59.4]} 15. Nc3 {[%clk
0:02:36.2]} 15... f6 {[%clk 0:02:51.8]} 16. Bf3 {[%clk 0:02:29.5]} 16... Qc8
{[%clk 0:02:47.7]} 17. Rfc1 {[%clk 0:02:17.9]} 17... Nf5 {[%clk 0:02:44.9]} 18.
Nd5 {[%clk 0:02:13.4]} 18... Bd6 {[%clk 0:02:42.5]} 19. Nxc7 {[%clk 0:02:08.3]}
19... Bxc7 {[%clk 0:01:50.1]} 20. Qxc7 {[%clk 0:02:07.2]} 20... Qe8 {[%clk
0:01:50.4]} 21. Qxb7 {[%clk 0:01:55.5]} 21... Rd8 {[%clk 0:01:31.4]} 22. Bb6
{[%clk 0:01:46.1]} 22... Rb8 {[%clk 0:01:17.2]} 23. Qc6 {[%clk 0:01:41.8]} 23...
Bd7 {[%clk 0:01:11.9]} 24. Qd5+ {[%clk 0:01:30.6]} 24... Be6 {[%clk 0:01:09.9]}
25. Qc5 {[%clk 0:01:29.7]} 25... Qg6 {[%clk 0:00:58.9]} 26. Bc7 {[%clk
0:01:18.8]} 26... Rbc8 {[%clk 0:00:54.1]} 27. Qc6 {[%clk 0:01:05]} 27... Bf7
{[%clk 0:00:38.4]} 28. b6 {[%clk 0:01:01.8]} 28... Nh4 {[%clk 0:00:38.3]} 29.
Be4 {[%clk 0:00:52.4]} 29... Qg5 {[%clk 0:00:26.7]} 30. b7 {[%clk 0:00:51.9]}
30... Rce8 {[%clk 0:00:21.5]} 31. Bf4 {[%clk 0:00:43.6]} 31... Qh5 {[%clk
0:00:15.7]} 32. Bf3 {[%clk 0:00:36.7]} 32... Qg6 {[%clk 0:00:11.9]} 33. Rab1
{[%clk 0:00:33.2]} 33... h6 {[%clk 0:00:07.9]} 34. b8=Q {[%clk 0:00:32.1]} 34...
Rxb8 {[%clk 0:00:07.9]} 35. Rxb8 {[%clk 0:00:32.3]} 35... Rxb8 {[%clk
0:00:08.5]} 36. Bxb8 {[%clk 0:00:32.2]} 36... Kh7 {[%clk 0:00:07.8]} 37. Bg3
{[%clk 0:00:29.9]} 37... Nf5 {[%clk 0:00:07.2]} 38. Be4 {[%clk 0:00:29.6]} 1-0

[Event "*** Titled Tuesday Blitz"]
[Site "Chess.com"]
[Date "2021.02.02"]
[Round "2"]
[White "isla88"]
[Black "eldur16"]
[Result "0-1"]
[WhiteElo "2308"]
[BlackElo "2525"]
[TimeControl "180+1"]
[EndTime "10:19:38 PST"]
[Termination "eldur16 won by resignation"]

1. d4 {[%clk 0:03:00.9]} 1... d6 {[%clk 0:02:59.6]} 2. Nc3 {[%clk 0:02:57.4]}
2... g6 {[%clk 0:02:56.9]} 3. h4 {[%clk 0:02:55.5]} 3... Bg7 {[%clk 0:02:55.1]}
4. h5 {[%clk 0:02:52.9]} 4... c5 {[%clk 0:02:54.3]} 5. Nf3 {[%clk 0:02:41.3]}
5... cxd4 {[%clk 0:02:53.1]} 6. Nxd4 {[%clk 0:02:40.9]} 6... Nc6 {[%clk
0:02:53]} 7. Nxc6 {[%clk 0:02:36.5]} 7... bxc6 {[%clk 0:02:52.6]} 8. h6 {[%clk
0:02:37]} 8... Bxc3+ {[%clk 0:02:50.5]} 9. bxc3 {[%clk 0:02:36.4]} 9... Nf6
{[%clk 0:02:50.3]} 10. Bg5 {[%clk 0:02:33.5]} 10... Qa5 {[%clk 0:02:37.1]} 11.
Bxf6 {[%clk 0:02:25.6]} 11... exf6 {[%clk 0:02:36.7]} 12. Qd4 {[%clk 0:02:06.2]}
12... Qe5 {[%clk 0:02:35.3]} 13. Qd2 {[%clk 0:01:56.5]} 13... O-O {[%clk
0:02:32.2]} 14. g3 {[%clk 0:01:52.3]} 14... Be6 {[%clk 0:02:28.3]} 15. Bg2
{[%clk 0:01:49.2]} 15... d5 {[%clk 0:02:23.3]} 16. O-O {[%clk 0:01:35.6]} 16...
Rab8 {[%clk 0:02:13.2]} 17. Rab1 {[%clk 0:01:26.2]} 17... c5 {[%clk 0:02:05.3]}
18. f4 {[%clk 0:01:12.6]} 18... Qh5 {[%clk 0:02:03.4]} 19. f5 {[%clk 0:01:09.2]}
19... gxf5 {[%clk 0:01:51.2]} 20. Bxd5 {[%clk 0:01:04.9]} 20... Rbd8 {[%clk
0:01:45.3]} 21. c4 {[%clk 0:01:04.5]} 21... Rfe8 {[%clk 0:01:41.5]} 22. Rf2
{[%clk 0:00:46]} 22... Qg5 {[%clk 0:01:21]} 23. Qxg5+ {[%clk 0:00:39.9]} 23...
fxg5 {[%clk 0:01:20.1]} 24. Rb7 {[%clk 0:00:34.1]} 24... Bxd5 {[%clk 0:01:13.2]}
25. cxd5 {[%clk 0:00:35]} 25... Rxd5 {[%clk 0:01:13.2]} 26. Rxa7 {[%clk
0:00:35.4]} 26... Kf8 {[%clk 0:01:05.2]} 27. a4 {[%clk 0:00:29.9]} 27... Re6
{[%clk 0:01:04.6]} 28. Rh2 {[%clk 0:00:24.7]} 28... Rd1+ {[%clk 0:00:57.3]} 29.
Kf2 {[%clk 0:00:24]} 29... Rd2 {[%clk 0:00:57.4]} 30. Ke1 {[%clk 0:00:23.9]}
30... Rxc2 {[%clk 0:00:57.2]} 31. Ra8+ {[%clk 0:00:23.7]} 31... Re8 {[%clk
0:00:50.6]} 32. Rxe8+ {[%clk 0:00:20.3]} 32... Kxe8 {[%clk 0:00:49.7]} 33. Rf2
{[%clk 0:00:21.2]} 33... f6 {[%clk 0:00:46]} 34. Rxf5 {[%clk 0:00:20.3]} 34...
Kf7 {[%clk 0:00:45.9]} 35. Rd5 {[%clk 0:00:17.2]} 35... Kg6 {[%clk 0:00:44.4]}
36. Rd6 {[%clk 0:00:17.6]} 36... Ra2 {[%clk 0:00:39.9]} 37. Ra6 {[%clk 0:00:14]}
37... c4 {[%clk 0:00:38.9]} 38. e4 {[%clk 0:00:14.2]} 38... c3 {[%clk
0:00:36.9]} 39. e5 {[%clk 0:00:14.3]} 39... Ra1+ {[%clk 0:00:35.4]} 40. Ke2
{[%clk 0:00:12.6]} 40... c2 {[%clk 0:00:35.5]} 41. Rxf6+ {[%clk 0:00:10.2]}
41... Kh5 {[%clk 0:00:35.2]} 42. Ke3 {[%clk 0:00:07.8]} 0-1

[Event "*** Titled Tuesday Blitz"]
[Site "Chess.com"]
[Date "2021.02.02"]
[Round "2"]
[White "NateSolon"]
[Black "HristosBanikas"]
[Result "0-1"]
[WhiteElo "2545"]
[BlackElo "2865"]
[TimeControl "180+1"]
[EndTime "10:19:41 PST"]
[Termination "HristosBanikas won on time"]

1. d4 {[%clk 0:03:00.9]} 1... Nf6 {[%clk 0:02:59.7]} 2. c4 {[%clk 0:03:00.9]}
2... g6 {[%clk 0:03:00.1]} 3. Nc3 {[%clk 0:03:01.1]} 3... Bg7 {[%clk 0:02:59.3]}
4. e4 {[%clk 0:03:01]} 4... d6 {[%clk 0:02:59.3]} 5. Nf3 {[%clk 0:03:01.4]} 5...
O-O {[%clk 0:02:59.3]} 6. Be2 {[%clk 0:03:01.8]} 6... e5 {[%clk 0:02:59.9]} 7.
Be3 {[%clk 0:03:01.8]} 7... c6 {[%clk 0:02:58.1]} 8. O-O {[%clk 0:02:57]} 8...
exd4 {[%clk 0:02:57.5]} 9. Bxd4 {[%clk 0:02:48.2]} 9... Re8 {[%clk 0:02:56.6]}
10. Qc2 {[%clk 0:02:46.6]} 10... Qe7 {[%clk 0:02:54]} 11. Rad1 {[%clk
0:02:31.5]} 11... Nbd7 {[%clk 0:02:52.5]} 12. Rfe1 {[%clk 0:02:24.6]} 12... Ne5
{[%clk 0:02:52]} 13. h3 {[%clk 0:02:03.8]} 13... b6 {[%clk 0:02:41.6]} 14. Nxe5
{[%clk 0:01:43.9]} 14... dxe5 {[%clk 0:02:40.1]} 15. Be3 {[%clk 0:01:44.6]}
15... Bb7 {[%clk 0:02:35.2]} 16. c5 {[%clk 0:01:44.5]} 16... b5 {[%clk
0:02:33.8]} 17. Rd6 {[%clk 0:01:40]} 17... Nd7 {[%clk 0:02:12.2]} 18. Red1
{[%clk 0:01:38.6]} 18... Nf8 {[%clk 0:02:11.9]} 19. Nxb5 {[%clk 0:01:19.5]}
19... cxb5 {[%clk 0:02:10.1]} 20. Bxb5 {[%clk 0:01:20.4]} 20... Reb8 {[%clk
0:01:45.6]} 21. c6 {[%clk 0:01:14.7]} 21... Bc8 {[%clk 0:01:45.3]} 22. Bc4
{[%clk 0:00:59.5]} 22... Be6 {[%clk 0:01:44.2]} 23. Bxe6 {[%clk 0:00:53.1]}
23... Nxe6 {[%clk 0:01:44]} 24. Rd7 {[%clk 0:00:53.5]} 24... Qf6 {[%clk
0:01:43.4]} 25. c7 {[%clk 0:00:51.6]} 25... Rc8 {[%clk 0:01:43.2]} 26. Qc6
{[%clk 0:00:42.7]} 26... Nd4 {[%clk 0:01:27.4]} 27. Qb7 {[%clk 0:00:36.7]} 27...
Qb6 {[%clk 0:01:07.4]} 28. Qd5 {[%clk 0:00:25.9]} 28... Qe6 {[%clk 0:01:06.2]}
29. Qb7 {[%clk 0:00:22.9]} 29... Qc6 {[%clk 0:00:54.2]} 30. Qxc6 {[%clk
0:00:19.2]} 30... Nxc6 {[%clk 0:00:53.2]} 31. R1d6 {[%clk 0:00:20.1]} 31... Nd4
{[%clk 0:00:47.6]} 32. Bxd4 {[%clk 0:00:15.6]} 32... exd4 {[%clk 0:00:47.5]} 33.
Rd8+ {[%clk 0:00:11.6]} 33... Bf8 {[%clk 0:00:47.8]} 34. Rxd4 {[%clk 0:00:12.3]}
34... Kg7 {[%clk 0:00:46.3]} 35. e5 {[%clk 0:00:09.4]} 35... Be7 {[%clk
0:00:43.5]} 36. Rxc8 {[%clk 0:00:09.6]} 36... Rxc8 {[%clk 0:00:43.9]} 37. Rd7
{[%clk 0:00:10.5]} 37... Kf8 {[%clk 0:00:44.2]} 38. f4 {[%clk 0:00:06.3]} 38...
Ke8 {[%clk 0:00:42.8]} 39. Rd5 {[%clk 0:00:05.9]} 39... Rxc7 {[%clk 0:00:43.2]}
40. Kh2 {[%clk 0:00:03.7]} 40... Rc2 {[%clk 0:00:42]} 41. Ra5 {[%clk 0:00:03.6]}
41... Bc5 {[%clk 0:00:41.9]} 42. b4 {[%clk 0:00:03]} 42... Bb6 {[%clk
0:00:42.2]} 43. Ra6 {[%clk 0:00:02.6]} 43... Rc4 {[%clk 0:00:40]} 0-1